bitfinex-derivatives/quotes_SOLF0:USTF0_20251209
["timestamp","ask_amount","ask_price","bid_price","bid_amount"]
[1765297592824,0.05042966,140.92,140.9,1.47098414]
[1765297593021,59.94,140.98,140.9,1.47098414]
[1765297593221,59.94,141.01,140.9,0.05098414]
[1765297593423,59.94,141.01,140.89,99.3769]
[1765297593623,110.89117407,141.09,140.91,99.3648]
[1765297593824,99.2616,141.06,140.89,111.02667407]
[1765297594027,0.05121952,140.99,140.96,0.04792369]
[1765297594321,0.04877247,140.99,140.96,0.04870656]
[1765297605542,0.04877247,140.99,140.96,6.43410656]
[1765297605935,13.47278212,141.09,140.96,0.04870656]
[1765297606239,59.94,141.06,140.93,99.3486]
[1765297606434,7.09278212,141.12,140.97,99.3228]
[1765297606630,159.1654,141.11,140.97,6.3848]
[1765297607032,0.05447594,141.05,141.03,0.05365853]
[1765297607228,0.04721874,141.05,141.03,0.05365853]
[1765297607437,205.44118212,141.19,141.03,1.47365853]
[1765297607643,6.3766,141.16,141.05,6.3813]
[1765297608241,6.377,141.15,141.05,62.0]
[1765297608432,0.05081398,141.12,141.09,0.05105838]
[1765297609242,59.99081398,141.12,141.09,0.05105838]
[1765297611334,59.99081398,141.12,141.01,68.3829]
[1765297611532,59.94,141.12,140.97,99.3205]
[1765297611942,6.3789,141.11,141.0,6.3836]
[1765297612642,0.04691924,141.07,141.04,0.04630173]
[1765297614544,0.04691924,141.07,140.96,62.0]
[1765297614742,159.1625,141.09,140.96,62.0]
[1765297614932,59.92,141.08,140.99,6.3837]
[1765297615352,0.05349671,141.05,141.02,0.04479492]
[1765297617144,6.3821,141.04,141.02,0.04479492]
[1765297617447,0.05349671,141.05,141.02,0.04479492]
[1765297620151,0.05349671,141.05,141.02,6.42749492]
[1765297620450,0.05349671,141.05,141.02,0.04479492]
[1765297620747,0.05349671,141.05,141.03,6.3822]
[1765297620943,7.09278212,141.19,141.04,1.42]
[1765297621151,7.09278212,141.19,141.03,99.2804]
[1765297621448,47.92,141.13,141.03,99.2804]
[1765297621844,47.92,141.13,141.07,0.04866177]
[1765297622144,0.05219066,141.09,141.07,0.04866177]
[1765297622446,47.92,141.13,141.07,7.14144389]
[1765297622845,155.64758212,141.13,140.95,5.98251701]
[1765297623141,155.64758212,141.13,140.97,99.3219]
[1765297623142,7.09278212,141.1,140.97,99.3219]
[1765297623449,59.9,141.09,141.01,6.3831]
[1765297623646,59.9,141.09,140.98,99.3156]
[1765297623845,0.04576575,141.05,141.02,0.04923258]
[1765297624850,47.92,141.13,141.06,99.2605]
[1765297625053,47.92,141.13,141.02,99.2868]
[1765297625246,55.01278212,141.13,141.0,99.3013]
[1765297625444,55.01278212,141.13,141.01,99.2951]
[1765297625646,30.91,141.12,141.06,0.05196915]
[1765297626041,0.04709748,141.1,141.06,0.05196915]
[1765297627155,0.04709748,141.1,141.06,6.43266915]
[1765297627348,0.04709748,141.1,141.06,0.05196915]
[1765297628054,30.91,141.12,141.06,0.05196915]
[1765297628256,20.1819,141.12,141.09,99.238]
[1765297628458,20.1819,141.12,141.1,6.3788]
[1765297629147,7.09278212,141.25,141.1,1.4693854]
[1765297629352,59.9,141.24,141.14,6.3774]
[1765297629552,7.09278212,141.28,141.14,99.2038]
[1765297629755,59.9,141.27,141.14,99.2038]
[1765297630160,59.9,141.27,141.17,6.3759]
[1765297630459,59.9,141.27,141.21,0.04923737]
[1765297631772,28.70730646,141.28,141.21,0.04923737]
[1765297632067,59.88,141.26,141.21,0.04923737]
[1765297632460,7.09278212,141.25,141.15,6.3768]
[1765297632756,7.09278212,141.25,141.13,99.2074]
[1765297632958,0.09,141.24,141.13,99.2074]
[1765297633359,0.04758494,141.2,141.17,0.04526019]
[1765297634365,0.04758494,141.2,141.17,6.42106019]
[1765297635073,0.04758494,141.2,141.18,6.3753]
[1765297636569,0.09,141.24,141.2,99.1586]
[1765297636764,0.09,141.24,141.21,99.1536]
[1765297636961,0.09,141.24,141.19,99.168]
[1765297637157,0.09,141.24,141.18,99.1717]
[1765297637357,0.09,141.24,141.19,99.1685]
[1765297637570,0.09,141.24,141.2,0.05260013]
[1765297641676,7.18278212,141.24,141.2,0.05260013]
[1765297642071,7.18278212,141.24,141.11,99.2239]
[1765297642580,7.18278212,141.24,141.14,6.3773]
[1765297642781,7.18278212,141.24,141.11,99.2239]
[1765297643073,0.04814167,141.2,141.17,0.0496158]
[1765297643277,0.04814167,141.2,141.09,198.4708]
[1765297643469,7.09278212,141.21,141.09,198.4708]
[1765297643666,7.09278212,141.21,141.12,6.3781]
[1765297644366,0.09,141.24,141.15,0.05299752]
[1765297644367,7.13854577,141.18,141.15,0.05299752]
[1765297644567,59.86,141.17,141.15,0.04738651]
[1765297644772,59.90885809,141.18,141.15,0.04738651]
[1765297646268,61.32885809,141.18,141.11,6.3784]
[1765297646474,59.90885809,141.18,141.11,6.3784]
[1765297646872,0.04885809,141.18,141.13,6.3777]
[1765297647074,59.86,141.19,141.13,6.3777]
[1765297647274,0.05044218,141.17,141.14,0.0472697]
[1765297650275,0.05044218,141.17,141.08,99.2434]
[1765297650276,0.05044218,141.17,141.04,99.2737]
[1765297650479,7.09278212,141.18,141.06,99.2598]
[1765297651374,0.04900441,141.13,141.11,0.04539443]
[1765297651680,0.04578784,141.13,141.11,0.04539443]
[1765297652274,47.96,141.19,141.11,0.04539443]
[1765297652480,47.96,141.19,141.13,99.2094]
[1765297653085,47.96,141.19,141.12,99.2145]
[1765297653583,47.96,141.19,141.14,0.05195165]
[1765297653584,0.0462843,141.17,141.14,0.05195165]
[1765297654278,0.0462843,141.17,141.15,6.3766]
[1765297654478,47.96,141.19,141.15,99.1933]
[1765297654983,47.49812454,141.19,141.15,99.1933]
[1765297655177,47.49812454,141.19,141.14,0.05195165]
[1765297655580,0.04971693,141.18,141.17,6.3759]
[1765297656485,0.04971693,141.18,141.14,0.05195165]
[1765297656690,99.1039,141.29,141.14,0.05195165]
[1765297656691,170.57182784,141.34,141.17,99.1801]
[1765297656889,71.50212784,141.34,141.2,99.1618]
[1765297657391,11.64212784,141.34,141.2,99.1618]
[1765297657691,0.04787471,141.28,141.26,0.05417099]
[1765297657892,0.05178026,141.28,141.26,0.05417099]
[1765297664678,47.45,141.36,141.31,6.3694]
[1765297665592,47.45,141.36,141.22,5.99023326]
[1765297665778,47.45,141.36,141.24,99.133]
[1765297665975,47.45,141.36,141.26,0.04520551]
[1765297666190,47.45,141.36,141.3,0.04885919]
[1765297668992,47.45,141.36,141.31,6.3695]
[1765297669293,47.45,141.36,141.3,99.13695919]
[1765297669499,47.45,141.36,141.33,99.0694]
[1765297669792,5.554e-05,141.36,141.34,6.368]
[1765297669995,59.82,141.51,141.36,99.0486]
[1765297670289,59.82,141.51,141.42,0.047106]
[1765297670490,3.01692708,141.52,141.45,0.05210906]
[1765297671900,11.64212784,141.51,141.31,99.0786]
[1765297672190,4.43692708,141.52,141.31,99.0786]
[1765297672191,59.8,141.5,141.34,99.0631]
[1765297672396,98.9601,141.49,141.31,99.0786]
[1765297672596,11.64212784,141.47,141.31,99.0786]
[1765297672797,18.00482784,141.47,141.3,99.0908]
[1765297672985,0.04521026,141.4,141.38,0.05074191]
[1765297673191,0.04977126,141.4,141.38,0.04991199]
[1765297673488,0.04977126,141.4,141.29,99.0955]
[1765297673694,0.25,141.46,141.29,99.0955]
[1765297673888,0.25,141.46,141.33,6.3685]
[1765297674391,0.25,141.46,141.38,0.04690813]
[1765297674598,0.04599777,141.41,141.38,0.04690813]
[1765297680499,1.46599777,141.41,141.38,0.04690813]
[1765297680810,1.46599777,141.41,141.24,99.1315]
[1765297680811,112.12732561,141.41,141.24,99.1315]
[1765297681097,11.64212784,141.41,141.25,99.1269]
[1765297681304,11.64212784,141.41,141.26,99.1182]
[1765297681603,0.04549923,141.35,141.32,0.05049534]
[1765297681804,59.8336506,141.35,141.32,0.0529596]
[1765297683002,59.8336506,141.35,141.23,99.137]
[1765297683305,59.78,141.35,141.22,99.1445]
[1765297683504,99.0323,141.39,141.25,6.3722]
[1765297683695,59.78,141.38,141.27,99.1124]
[1765297683900,59.78,141.38,141.25,99.1223]
[1765297684199,0.04505595,141.33,141.3,0.04727072]
[1765297684399,0.04634132,141.33,141.3,0.04735966]
[1765297688707,0.04634132,141.33,141.3,6.41735966]
[1765297689010,0.04634132,141.33,141.3,0.04735966]
[1765297689501,3.01692708,141.52,141.38,99.0345]
[1765297689707,59.78,141.5,141.33,99.0707]
[1765297689914,59.78,141.5,141.34,99.0636]
[1765297690105,6.3622,141.48,141.37,6.3668]
[1765297690503,0.04889823,141.43,141.4,0.05062854]
[1765297705520,60.01,141.46,141.4,0.05062854]
[1765297705521,0.25,141.46,141.4,1.47062854]
[1765297705724,0.25,141.46,141.4,0.05062854]
[1765297706424,0.05309306,141.44,141.4,0.05062854]
[1765297707513,0.05309306,141.44,141.29,159.012]
[1765297707715,98.9983,141.44,141.31,6.3696]
[1765297708422,0.0524708,141.39,141.36,0.05378696]
[1765297709635,98.9464,141.51,141.36,100.51928696]
[1765297709820,59.76,141.5,141.36,99.0455]
[1765297710218,59.76,141.5,141.4,6.3654]
[1765297710419,0.3,141.49,141.4,6.3654]
[1765297710615,0.05218429,141.46,141.44,0.0543212]
[1765297720831,6.41528429,141.46,141.35,6.3677]
[1765297721038,6.41528429,141.46,141.34,21.14687985]
[1765297721039,6.3631,141.46,141.34,21.14687985]
[1765297721242,106.02084143,141.47,141.31,99.0832]
[1765297721536,98.9815,141.46,141.34,6.3681]
[1765297721932,0.05172641,141.41,141.39,0.05346434]
[1765297722237,0.05035141,141.41,141.39,0.05346434]
[1765297730044,6.41575141,141.41,141.32,62.0]
[1765297730343,7.04774143,141.43,141.32,62.0]
[1765297730840,6.3648,141.42,141.32,68.3691]
[1765297731036,7.04774143,141.43,141.36,0.04470968]
[1765297731440,0.04706193,141.41,141.36,0.04470968]
[1765297732139,0.04706193,141.41,141.37,99.0427]
[1765297732335,59.76,141.48,141.41,6.3651]
[1765297732567,0.3,141.49,141.41,99.0146]
[1765297733047,0.3,141.49,141.44,6.3637]
[1765297733251,0.3,141.49,141.38,99.0353]
[1765297733440,0.05063604,141.45,141.42,0.05177175]
[1765297734349,59.81063604,141.45,141.42,0.05177175]
[1765297735138,0.05063604,141.45,141.42,0.05177175]
[1765297736136,6.41433604,141.45,141.42,0.05177175]
[1765297736652,6.3639,141.44,141.42,0.05177175]
[1765297737846,0.05063604,141.45,141.33,6.3686]
[1765297738037,7.04774143,141.42,141.29,6.00994844]
[1765297738238,7.04774143,141.42,141.29,99.0958]
[1765297738554,7.04774143,141.45,141.31,99.0814]
[1765297738752,59.74,141.44,141.31,99.0814]
[1765297738947,0.04916642,141.39,141.37,0.05046162]
[1765297739255,0.05074169,141.39,141.37,0.05046162]
[1765297744653,0.05074169,141.39,141.26,99.1167]
[1765297744954,106.06374143,141.41,141.29,99.0979]
[1765297744955,7.04774143,141.41,141.29,99.0979]
[1765297745254,158.7059,141.51,141.36,99.0446]
[1765297745448,98.9519,141.5,141.42,0.05104114]
[1765297745647,98.9519,141.5,141.35,7.04774143]
[1765297745648,99.3119,141.5,141.35,7.04774143]
[1765297745850,99.3119,141.5,141.34,99.0578]
[1765297745851,6.3627,141.47,141.34,99.0578]
[1765297746154,0.05184473,141.44,141.41,0.05144447]
[1765297746450,0.04940505,141.44,141.3,105.10004844]
[1765297746747,59.76,141.43,141.3,99.0901]
[1765297746941,99.0157,141.41,141.28,6.00994844]
[1765297747140,99.026,141.4,141.26,125.95610046]
[1765297747345,99.026,141.4,141.26,119.94615202]
[1765297747644,0.05301383,141.34,141.32,0.05367187]
[1765297747845,0.04795613,141.34,141.32,0.05367187]
[1765297751552,6.3655,141.41,141.32,1.47367187]
[1765297751553,59.76,141.41,141.32,1.47367187]
[1765297751747,98.9727,141.48,141.32,1.47367187]
[1765297751748,106.36064143,141.5,141.35,99.0557]
[1765297751949,106.02364143,141.47,141.35,6.3676]
[1765297752256,7.04774143,141.44,141.3,99.0916]
[1765297752556,6.3654,141.41,141.36,0.054463]
[1765297752746,59.76,141.4,141.36,0.054463]
[1765297753056,59.80572439,141.4,141.36,0.054463]
[1765297754451,59.80572439,141.4,141.3,6.3699]
[1765297754649,7.04774143,141.38,141.24,105.14084844]
[1765297754848,7.04774143,141.38,141.24,99.1309]
[1765297755456,0.05185798,141.32,141.3,0.04457608]
[1765297755661,0.04672615,141.32,141.3,0.04457608]
[1765297756056,59.76,141.4,141.3,0.04457608]
[1765297756353,59.76,141.4,141.3,99.0917]
[1765297756552,13.41204143,141.44,141.31,99.0834]
[1765297756760,98.9609,141.49,141.34,99.0635]
[1765297756956,0.04783862,141.43,141.4,0.04747612]
[1765297757154,0.04783862,141.43,141.4,0.05344095]
[1765297757155,0.05094549,141.43,141.4,0.05344095]
[1765297759756,8.51868692,141.43,141.3,99.0905]
[1765297759949,7.04774143,141.43,141.3,99.0905]
[1765297760146,59.76,141.42,141.31,99.0845]
[1765297760659,59.76,141.43,141.33,99.0689]
[1765297760853,0.04714711,141.38,141.35,0.04898184]
[1765297761356,0.04714711,141.38,141.36,6.3673]
[1765297762059,0.04714711,141.38,141.35,0.04898184]
[1765297764556,0.39,141.41,141.38,6.3662]
[1765297765061,0.39,141.41,141.39,6.3659]
[1765297765656,0.43971149,141.41,141.39,6.41496984]
[1765297766052,0.20139916,141.41,141.39,6.41496984]
[1765297766463,0.04971149,141.41,141.39,6.41496984]
[1765297768662,0.04971149,141.41,141.39,0.04906984]
[1765297773584,0.04971149,141.41,141.39,6.41506984]
[1765297773969,0.04971149,141.41,141.4,62.0]
[1765297774371,0.04971149,141.41,141.39,0.04906984]
[1765297780784,0.04971149,141.41,141.39,6.41476984]
[1765297781486,0.04971149,141.41,141.39,0.04906984]
[1765297784182,0.04971149,141.41,141.31,6.00994844]
[1765297784393,6.3668,141.38,141.31,6.3696]
[1765297785093,6.366,141.4,141.31,6.3696]
[1765297785295,0.05349934,141.37,141.34,0.05339967]
[1765297786093,0.05349934,141.37,141.34,6.42159967]
[1765297786297,0.05349934,141.37,141.34,0.05339967]
[1765297786689,0.05349934,141.37,141.35,6.3678]
[1765297786886,0.05349934,141.37,141.34,0.05339967]
[1765297788502,0.05349934,141.37,141.34,6.42169967]
[1765297789395,0.05349934,141.37,141.35,68.3678]
[1765297791892,0.05349934,141.37,141.35,69.7878]
[1765297793501,0.05349934,141.37,141.35,75.79774844]
[1765297793694,0.0001,141.43,141.42,6.3647]
[1765297794098,0.0001,141.43,141.42,7.7847]
[1765297794491,3.01692708,141.52,141.42,100.4254]
[1765297794701,0.04861435,141.48,141.46,0.05137808]
[1765297795105,1.46861435,141.48,141.36,6.09559881]
[1765297795403,98.9631,141.49,141.36,6.3671]
[1765297795708,98.9688,141.48,141.35,105.15019881]
[1765297796209,0.04731493,141.43,141.4,0.05212742]
[1765297797099,6.41171493,141.43,141.4,0.05212742]
[1765297799003,0.04731493,141.43,141.4,0.05212742]
[1765297803507,0.04731493,141.43,141.4,6.41752742]
[1765297804009,0.04731493,141.43,141.4,105.16652623]
[1765297804199,0.04731493,141.43,141.42,6.3647]
[1765297804511,3.01692708,141.52,141.42,6.3647]
[1765297804512,3.01692708,141.52,141.46,98.9789]
[1765297804700,3.01692708,141.52,141.48,6.3617]
[1765297805100,3.01692708,141.52,141.49,98.9587]
[1765297805412,3.06916,141.52,141.49,0.05047444]
[1765297806813,3.06916,141.52,141.49,99.00797444]
[1765297807011,3.06916,141.52,141.49,6.41177444]
[1765297807210,3.06916,141.52,141.5,62.0]
[1765297807597,3.06916,141.52,141.51,6.3607]
[1765297807598,6e-05,141.52,141.51,6.3607]
[1765297808004,59.7,141.65,141.55,98.9163]
[1765297808311,59.7,141.65,141.54,98.9196]
[1765297808312,59.7,141.65,141.58,98.8954]
[1765297808699,59.7,141.65,141.59,6.3571]
[1765297808902,98.8643,141.63,141.49,6.09079113]
[1765297809104,98.8643,141.63,141.48,98.965]
[1765297809105,0.04616588,141.57,141.55,0.05065717]
[1765297809310,0.04661003,141.57,141.55,0.04544557]
[1765297810617,1.46661003,141.57,141.46,98.9778]
[1765297810907,98.8859,141.6,141.47,98.9724]
[1765297811113,98.8797,141.61,141.48,6.3617]
[1765297811326,98.883,141.6,141.48,6.3617]
[1765297811615,98.883,141.6,141.53,0.0544591]
[1765297811616,0.04852854,141.55,141.53,0.0544591]
[1765297811913,0.04615675,141.55,141.53,0.0544591]
[1765297813509,1.46615675,141.55,141.53,0.0544591]
[1765297814215,1.46615675,141.55,141.42,99.0061]
[1765297814519,98.9247,141.54,141.38,99.0347]
[1765297814707,98.9247,141.54,141.41,99.0138]
[1765297815011,59.66,141.53,141.41,99.0138]
[1765297815214,0.04833979,141.49,141.46,0.05261826]
[1765297817619,1.46833979,141.49,141.34,99.0616]
[1765297817812,98.9557,141.5,141.34,99.0616]
[1765297817813,98.9557,141.5,141.36,99.0478]
[1765297818011,59.66,141.49,141.36,99.0478]
[1765297818211,6.3623,141.48,141.38,6.3663]
[1765297818413,59.66,141.49,141.38,99.0358]
[1765297818707,296.6604,141.6,141.43,105.3647]
[1765297818708,0.04604247,141.45,141.43,105.3647]
[1765297818909,66.0177,141.58,141.46,98.9795]
[1765297819113,0.05337309,141.53,141.51,0.04837949]
[1765297819310,0.0515704,141.53,141.51,0.04837949]
[1765297824020,1.4715704,141.53,141.44,6.3636]
[1765297824223,98.9091,141.57,141.44,68.3636]
[1765297824527,59.66,141.58,141.48,6.3618]
[1765297824918,0.0507968,141.54,141.52,0.0447862]
[1765297825529,59.66,141.62,141.52,0.0447862]
[1765297825721,59.66,141.62,141.5,98.9464]
[1765297826025,59.66,141.62,141.51,98.9422]
[1765297826229,110.43639711,141.68,141.54,98.9222]
[1765297826523,0.050006,141.62,141.6,0.0514507]
[1765297826728,0.04616879,141.62,141.6,0.0514507]
[1765297827321,1.46616879,141.62,141.49,98.9555]
[1765297827628,110.46799711,141.64,141.49,98.9555]
[1765297827629,98.862,141.63,141.49,98.9555]
[1765297827820,110.46799711,141.64,141.5,98.9488]
[1765297828125,98.8631,141.63,141.49,98.9555]
[1765297828314,0.05041343,141.57,141.55,0.05033992]
[1765297828515,0.0507943,141.57,141.55,0.05033992]
[1765297829521,1.4707943,141.57,141.43,197.9932]
[1765297829711,98.9269,141.54,141.39,99.0264]
[1765297829912,98.938,141.52,141.38,99.0352]
[1765297830124,59.66,141.51,141.42,6.3646]
[1765297830426,59.66,141.52,141.41,99.0134]
[1765297830617,0.052325,141.48,141.45,0.05024339]
[1765297830816,0.052325,141.48,141.45,6.41344339]
[1765297831321,98.9049,141.57,141.47,6.3622]
[1765297831322,6.3582,141.57,141.47,6.3622]
[1765297831531,98.8633,141.63,141.49,98.9561]
[1765297831826,98.8569,141.64,141.52,6.3599]
[1765297831827,66.016,141.62,141.52,6.3599]
[1765297832428,0.05071869,141.58,141.56,0.04869122]
[1765297837215,1.47071869,141.58,141.46,98.9755]
[1765297837430,158.5314,141.62,141.48,98.9652]
[1765297837626,59.66,141.62,141.49,98.9585]
[1765297837933,66.016,141.62,141.49,98.9585]
[1765297838318,0.05280717,141.57,141.54,0.05148345]
[1765297838722,98.834,141.67,141.54,0.05148345]
[1765297838924,98.8477,141.65,141.49,105.00445301]
[1765297839136,98.8477,141.65,141.5,98.951]
[1765297839629,6.3561,141.62,141.52,6.3601]
[1765297839833,0.04727812,141.59,141.56,0.05083052]
[1765297841730,98.8126,141.7,141.56,0.05083052]
[1765297841731,98.7944,141.73,141.6,98.8816]
[1765297841923,59.66,141.73,141.59,98.8871]
[1765297842233,59.66,141.73,141.66,6.3537]
[1765297842434,98.7994,141.72,141.59,165.71781302]
[1765297842636,6.3528,141.69,141.61,6.3559]
[1765297842835,0.05355412,141.67,141.64,0.0495167]
[1765297843827,0.05355412,141.67,141.52,197.8681]
[1765297843828,98.8406,141.66,141.52,104.98035301]
[1765297844033,158.4903,141.65,141.52,98.9309]
[1765297844234,98.8542,141.64,141.51,20.73139707]
[1765297844543,98.8542,141.64,141.5,127.04657767]
[1765297844733,0.04495936,141.58,141.56,0.04587681]
[1765297844935,0.05101597,141.58,141.56,0.04587681]
[1765297845440,0.05101597,141.58,141.56,6.40397681]
[1765297845634,65.9947,141.65,141.56,7.82397681]
[1765297845832,6.3547,141.65,141.56,6.3581]
[1765297846027,6.355,141.64,141.56,6.3581]
[1765297846336,59.64,141.74,141.62,7.03071302]
[1765297846539,0.05088714,141.69,141.67,0.04731493]
[1765297846738,0.05287736,141.69,141.67,105.90752795]
[1765297846933,98.7444,141.8,141.68,1.42]
[1765297847135,98.7497,141.79,141.67,7.03071302]
[1765297847339,6.3493,141.77,141.68,6.353]
[1765297847536,6.3493,141.77,141.65,105.87341302]
[1765297847537,158.3865,141.77,141.65,7.03071302]
[1765297848031,0.04742614,141.72,141.7,0.05415547]
[1765297848227,0.04685805,141.72,141.6,203.80565301]
[1765297848531,98.7803,141.75,141.62,98.8669]
[1765297848740,98.7803,141.75,141.63,62.0]
[1765297849239,6.3516,141.72,141.61,98.8748]
[1765297849440,0.04552458,141.7,141.61,98.8748]
[1765297849633,0.04557488,141.67,141.65,0.05439177]
[1765297849834,0.04875637,141.67,141.65,0.05439177]
[1765297851735,98.7445,141.8,141.66,7.03071302]
[1765297851938,98.7445,141.8,141.66,105.86661302]
[1765297852125,6.3487,141.78,141.67,160.833]
[1765297852328,158.3729,141.79,141.67,62.0]
[1765297852528,158.3729,141.79,141.68,6.3528]
[1765297852529,6.3493,141.77,141.68,6.3528]
[1765297852738,0.05341954,141.74,141.71,0.05157809]
[1765297854340,6.40411954,141.74,141.71,0.05157809]
[1765297854639,6.40411954,141.74,141.66,7.03071302]
[1765297854640,1.47341954,141.74,141.63,7.03071302]
[1765297854836,98.7803,141.75,141.63,7.03071302]
[1765297855146,6.351,141.73,141.64,6.3546]
[1765297855527,0.04559581,141.7,141.67,0.05216779]
[1765297858144,59.64559581,141.7,141.67,0.05216779]
[1765297859644,98.8271,141.68,141.55,98.9156]
[1765297859948,158.4152,141.7,141.57,105.93321302]
[1765297860144,98.8012,141.72,141.6,7.03071302]
[1765297860340,59.6,141.71,141.6,105.90841302]
[1765297860540,59.6,141.7,141.63,7.03071302]
[1765297860742,0.05309399,141.68,141.65,0.05423811]
[1765297860941,0.05381619,141.68,141.65,0.04806375]
[1765297861137,59.6,141.77,141.67,98.8322]
[1765297861341,59.6,141.77,141.66,8.45071302]
[1765297861342,59.6,141.77,141.72,6.3511]
[1765297861543,59.6,141.77,141.71,7.03071302]
[1765297861745,59.6,141.77,141.68,7.03071302]
[1765297862049,0.05277699,141.74,141.71,0.052372]
[1765297862851,98.7086,141.85,141.72,98.7976]
[1765297863036,59.6,141.84,141.72,98.7976]
[1765297863238,59.6,141.84,141.71,105.83101302]
[1765297863435,59.6,141.84,141.72,7.03071302]
[1765297863742,98.7294,141.82,141.71,6.3516]
[1765297864051,0.05368109,141.78,141.75,0.04648658]
[1765297864548,98.81338109,141.78,141.67,7.03071302]
[1765297864746,98.7644,141.77,141.67,7.03071302]
[1765297864942,59.6,141.76,141.67,7.03071302]
[1765297865147,59.6,141.78,141.7,7.03071302]
[1765297865343,59.6,141.8,141.7,7.03071302]
[1765297865549,0.04894002,141.76,141.74,0.04955282]
[1765297865738,0.04894002,141.76,141.74,0.04848026]
[1765297866547,6.39874002,141.76,141.74,0.04848026]
[1765297866852,98.7861,141.74,141.6,105.90571302]
[1765297867152,6.3511,141.73,141.63,6.3551]
[1765297867556,59.58,141.75,141.66,7.03071302]
[1765297867754,0.05416394,141.72,141.69,0.05371471]
[1765297868744,98.7079,141.85,141.71,7.03071302]
[1765297869053,98.7079,141.85,141.7,7.03071302]
[1765297869249,98.7079,141.85,141.7,105.83931302]
[1765297869549,59.58,141.86,141.7,105.83931302]
[1765297869752,0.04644896,141.79,141.77,0.04545579]
[1765297870062,0.04825975,141.79,141.77,0.04803465]
[1765297870246,101.65984952,141.88,141.77,0.04803465]
[1765297870247,59.58,141.82,141.77,0.04803465]
[1765297870549,2.97174952,141.88,141.79,105.77711302]
[1765297870750,2.97174952,141.88,141.79,126.63683513]
[1765297871051,2.97174952,141.88,141.81,6.3469]
[1765297871256,0.05139561,141.86,141.83,0.04820997]
[1765297875656,0.05139561,141.86,141.83,6.39440997]
[1765297876253,0.05139561,141.86,141.83,0.04820997]
[1765297877160,0.05139561,141.86,141.78,7.03071302]
[1765297877359,0.05139561,141.86,141.76,21.23235736]
[1765297877551,101.66174952,141.88,141.75,7.03071302]
[1765297877756,6.3449,141.87,141.76,98.7694]
[1765297878463,0.0541295,141.83,141.8,0.04809262]
[1765297879265,0.0541295,141.83,141.69,197.6307]
[1765297879266,1.4741295,141.83,141.7,7.03071302]
[1765297879456,98.7198,141.84,141.7,7.03071302]
[1765297879658,6.3475,141.81,141.71,6.3514]
[1765297879964,98.7224,141.83,141.71,6.3514]
[1765297880267,0.04877443,141.78,141.76,0.04555824]
[1765297880474,59.56,141.77,141.65,6.3544]
[1765297880658,59.56,141.77,141.64,197.6968]
[1765297880962,59.56,141.77,141.67,6.3532]
[1765297881152,59.56,141.77,141.63,98.8591]
[1765297881355,98.7707,141.76,141.69,0.05389058]
[1765297881768,0.05109359,141.74,141.69,0.05389058]
[1765297882063,6.40169359,141.74,141.69,0.05389058]
[1765297882268,0.05109359,141.74,141.69,0.05389058]
[1765297882768,59.56,141.73,141.69,0.05389058]
[1765297883357,59.56,141.72,141.69,0.05389058]
[1765297883557,59.56,141.72,141.62,20.68356905]
[1765297883763,59.56,141.72,141.6,98.8817]
[1765297883968,59.56,141.72,141.61,7.03071302]
[1765297884155,6.3474,141.81,141.68,98.8261]
[1765297884363,84.6,141.84,141.71,98.8043]
[1765297884563,84.6,141.84,141.73,7.03071302]
[1765297884764,0.04505578,141.79,141.76,0.04741647]
[1765297886268,2.97174952,141.88,141.77,7.03071302]
[1765297886468,59.56,141.86,141.77,7.03071302]
[1765297886658,59.56,141.86,141.78,62.0]
[1765297886955,59.56,141.86,141.74,7.03071302]
[1765297887155,98.7082,141.85,141.72,13.38191302]
[1765297887362,98.7082,141.85,141.77,0.04878981]
[1765297887363,0.05369973,141.8,141.77,0.04878981]
[1765297888863,2.97174952,141.88,141.77,0.04878981]
[1765297889068,158.257,141.87,141.75,7.03071302]
[1765297889271,65.9052,141.86,141.76,6.3492]
[1765297889658,59.56,141.86,141.75,105.80381302]
[1765297889861,0.04544626,141.82,141.79,0.05241661]
[1765297890270,59.56,141.87,141.79,0.05241661]
[1765297890468,59.56,141.87,141.76,62.0]